fUST/lending_fUST_20250112
["ID","MTS","AMOUNT","RATE_DAILY","PERIOD"]
[348545498,1736613038760,-104.43069444,0.00021916,2]
[348545499,1736613038772,-500.0,0.00021916,2]
[348545500,1736613038782,-500.0,0.00021916,2]
[348545501,1736613038792,-500.0,0.00021916,2]
[348545502,1736613038802,-500.0,0.00021916,2]
[348545503,1736613038811,-500.0,0.00021916,2]
[348545504,1736613038820,-500.0,0.00021916,2]
[348545505,1736613038830,-500.0,0.00021916,2]
[348545506,1736613038839,-500.0,0.00021916,2]
[348545507,1736613038848,-500.0,0.00021916,2]
[348545508,1736613038858,-500.0,0.00021916,2]
[348545509,1736613038867,-500.0,0.00021916,2]
[348545510,1736613038877,-250.0,0.00021916,2]
[348545511,1736613038886,-739.72,0.00021917,3]
[348545512,1736613038896,-526.04,0.00021917,3]
[348545513,1736613038906,-2877.5,0.00021917,3]
[348545514,1736613038915,-1484.87,0.00021917,3]
[348545515,1736613038925,-500.0,0.00021917,3]
[348545516,1736613038934,-500.0,0.00021917,3]
[348545517,1736613038943,-507.88982658,0.00021917,3]
[348545518,1736613038952,-500.0,0.00021917,3]
[348545519,1736613038962,-500.0,0.00021917,3]
[348545520,1736613038971,-500.0,0.00021917,3]
[348545521,1736613038980,-500.0,0.00021917,3]
[348545522,1736613038994,-215.14955335,0.00021917,3]
[348545523,1736613039004,-1166.83,0.00021917,3]
[348545524,1736613039013,-500.0,0.00021917,3]
[348545525,1736613039023,-618.88,0.00021917,3]
[348545526,1736613039033,-555.05,0.00021917,3]
[348545527,1736613039042,-500.0,0.00021917,3]
[348545528,1736613039052,-585.97,0.00021917,3]
[348545529,1736613039061,-500.0,0.00021917,3]
[348545530,1736613039072,-501.58050153,0.00021917,3]
[348545531,1736613039081,-500.0,0.00021917,3]
[348545532,1736613039090,-500.0,0.00021917,3]
[348545533,1736613039099,-500.0,0.00021917,3]
[348545534,1736613039109,-500.0,0.00021917,3]
[348545535,1736613039118,-500.0,0.00021917,3]
[348545536,1736613039128,-500.0,0.00021917,3]
[348545537,1736613039137,-500.0,0.00021917,3]
[348545538,1736613039147,-500.0,0.00021917,3]
[348545539,1736613039156,-500.0,0.00021917,3]
[348545540,1736613039165,-500.0,0.00021917,3]
[348545541,1736613039175,-500.0,0.00021917,3]
[348545542,1736613039184,-561.35,0.00021917,3]
[348545543,1736613039194,-500.0,0.00021917,3]
[348545544,1736613039204,-500.0,0.00021917,3]
[348545545,1736613039213,-500.0,0.00021917,3]
[348545546,1736613039223,-500.0,0.00021917,3]
[348545547,1736613039232,-500.0,0.00021917,3]
[348545548,1736613039241,-500.0,0.00021917,3]
[348545549,1736613039251,-500.0,0.00021917,3]
[348545550,1736613039260,-500.0,0.00021917,3]
[348545551,1736613039269,-500.0,0.00021917,3]
[348545552,1736613039279,-500.0,0.00021917,3]
[348545553,1736613039290,-500.0,0.00021917,3]
[348545554,1736613039300,-500.0,0.00021917,3]
[348545555,1736613039310,-500.0,0.00021917,3]
[348545556,1736613039321,-915.52,0.00021917,3]
[348545557,1736613039331,-1072.97,0.00021917,3]
[348545558,1736613039342,-188.0,0.00021917,2]
[348545559,1736613039352,-1271.1,0.00021917,3]
[348545560,1736613039363,-500.0,0.00021917,3]
[348545561,1736613039372,-1032.13,0.00021917,3]
[348545562,1736613039382,-500.0,0.00021917,3]
[348545563,1736613039392,-228.28905837,0.00021917,3]
[348545564,1736613039402,-334.02760616,0.00021917,3]
[348545565,1736613039411,-956.03,0.00021917,3]
[348545566,1736613039420,-505.54059457,0.00021917,3]
[348545567,1736613039429,-32875.6,0.00021917,2]
[348545568,1736613039439,-500.0,0.00021917,3]
[348545569,1736613039448,-2476.56,0.00021917,3]
[348545570,1736613039458,-500.0,0.00021917,3]
[348545571,1736613039467,-610.34,0.00021917,3]
[348545572,1736613039478,-500.0,0.00021917,3]
[348545573,1736613039487,-795.95,0.00021917,3]
[348545574,1736613039497,-500.0,0.00021917,3]
[348545575,1736613039506,-500.0,0.00021917,3]
[348545576,1736613039515,-500.0,0.00021917,3]
[348545577,1736613039525,-905.63,0.00021917,3]
[348545578,1736613039534,-237.80495093,0.00021917,3]
[348545579,1736613039544,-1035.73,0.00021917,3]
[348545580,1736613039554,-500.0,0.00021917,3]
[348545581,1736613039564,-500.0,0.00021917,3]
[348545582,1736613039573,-641.4,0.00021917,3]
[348545583,1736613039583,-500.0,0.00021917,3]
[348545584,1736613039592,-500.0,0.00021917,3]
[348545585,1736613039602,-500.0,0.00021917,3]
[348545586,1736613039612,-500.0,0.00021917,3]
[348545587,1736613039621,-500.0,0.00021917,3]
[348545588,1736613039631,-500.0,0.00021917,3]
[348545589,1736613039641,-500.0,0.00021917,3]
[348545590,1736613039650,-1542.49,0.00021917,3]
[348545591,1736613039660,-500.0,0.00021917,3]
[348545593,1736613039669,-500.0,0.00021917,3]
[348545594,1736613039679,-1045.59,0.00021917,3]
[348545595,1736613039688,-500.0,0.00021917,3]
[348545596,1736613039697,-500.0,0.00021917,3]
[348545597,1736613039707,-500.0,0.00021917,3]
[348545598,1736613039716,-500.0,0.00021917,3]
[348545599,1736613039725,-500.0,0.00021917,3]
[348545600,1736613039734,-1672.98,0.00021917,3]
[348545601,1736613039744,-500.0,0.00021917,3]
[348545602,1736613039753,-909.33,0.00021917,3]
[348545603,1736613039762,-500.0,0.00021917,3]
[348545604,1736613039771,-500.0,0.00021917,3]
[348545605,1736613039781,-500.0,0.00021917,3]
[348545606,1736613039793,-20401.62253302,0.00021917,3]
[348545645,1736613040388,-1739.02746698,0.00021917,3]
[348545646,1736613040399,-912.31,0.00021917,3]
[348545647,1736613040409,-905.47,0.00021917,3]
[348545648,1736613040418,-500.0,0.00021917,3]
[348545649,1736613040427,-500.0,0.00021917,3]
[348545650,1736613040436,-804.05,0.00021917,3]
[348545651,1736613040445,-953.03,0.00021917,3]
[348545652,1736613040455,-500.0,0.00021917,3]
[348545653,1736613040464,-5645.17,0.00021917,3]
[348545654,1736613040473,-1544.39,0.00021917,3]
[348545655,1736613040483,-500.0,0.00021917,3]
[348545656,1736613040492,-835.07,0.00021917,3]
[348545657,1736613040501,-555.5,0.00021917,3]
[348545658,1736613040510,-500.0,0.00021917,3]
[348545659,1736613040520,-161.72442544,0.00022057,2]
[348545660,1736613040530,-188.0,0.000221,2]
[348545661,1736613040538,-500.0,0.0002219,3]
[348545662,1736613040547,-600.5077871,0.0002219,3]
[348545663,1736613040556,-739.72,0.00022191,3]
[348545664,1736613040566,-526.04,0.00022191,3]
[348545665,1736613040576,-2877.5,0.00022191,3]
[348545666,1736613040586,-1484.87,0.00022191,3]
[348545667,1736613040596,-379.02845959,0.00022191,3]
[348545668,1736613040606,-500.0,0.00022191,3]
[348545669,1736613040615,-500.0,0.00022191,3]
[348545670,1736613040625,-1166.83,0.00022191,3]
[348545671,1736613040635,-500.0,0.00022191,3]
[348545672,1736613040645,-618.88,0.00022191,3]
[348545673,1736613040654,-555.05,0.00022191,3]
[348545674,1736613040663,-500.0,0.00022191,3]
[348545675,1736613040672,-585.97,0.00022191,3]
[348545676,1736613040682,-500.0,0.00022191,3]
[348545677,1736613040691,-500.0,0.00022191,3]
[348545678,1736613040701,-500.0,0.00022191,3]
[348545679,1736613040710,-500.0,0.00022191,3]
[348545680,1736613040720,-500.0,0.00022191,3]
[348545681,1736613040729,-500.0,0.00022191,3]
[348545682,1736613040739,-500.0,0.00022191,3]
[348545683,1736613040749,-296.80939589,0.00022191,3]
[348545684,1736613040759,-500.0,0.00022191,3]
[348545685,1736613040768,-500.0,0.00022191,3]
[348545686,1736613040777,-561.35,0.00022191,3]
[348545687,1736613040787,-500.0,0.00022191,3]
[348545688,1736613040796,-500.0,0.00022191,3]
[348545689,1736613040806,-500.0,0.00022191,3]
[348545690,1736613040815,-915.52,0.00022191,3]
[348545691,1736613040825,-1072.97,0.00022191,3]
[348545692,1736613040834,-1271.1,0.00022191,3]
[348545693,1736613040843,-500.0,0.00022191,3]
[348545694,1736613040852,-1032.13,0.00022191,3]
[348545695,1736613040862,-500.0,0.00022191,3]
[348545696,1736613040871,-956.03,0.00022191,3]
[348545697,1736613040881,-32875.6,0.00022191,2]
[348545698,1736613040890,-500.0,0.00022191,3]
[348545699,1736613040900,-2476.56,0.00022191,3]
[348545700,1736613040910,-610.34,0.00022191,3]
[348545701,1736613040919,-500.0,0.00022191,3]
[348545702,1736613040928,-795.95,0.00022191,3]
[348545703,1736613040938,-500.0,0.00022191,3]
[348545704,1736613040947,-500.0,0.00022191,3]
[348545705,1736613040956,-905.63,0.00022191,3]
[348545706,1736613040966,-1035.73,0.00022191,3]
[348545707,1736613040976,-500.0,0.00022191,3]
[348545708,1736613040986,-641.4,0.00022191,3]
[348545709,1736613040999,-500.0,0.00022191,3]
[348545710,1736613041010,-210.4,0.00022191,3]
[348545711,1736613041019,-500.0,0.00022191,3]
[348545712,1736613041029,-500.0,0.00022191,3]
[348545713,1736613041040,-1542.49,0.00022191,3]
[348545714,1736613041050,-500.0,0.00022191,3]
[348545715,1736613041062,-500.0,0.00022191,3]
[348545716,1736613041077,-1045.59,0.00022191,3]
[348545717,1736613041087,-500.0,0.00022191,3]
[348545718,1736613041097,-500.0,0.00022191,3]
[348545719,1736613041107,-500.0,0.00022191,3]
[348545720,1736613041117,-500.0,0.00022191,3]
[348545721,1736613041127,-1672.98,0.00022191,3]
[348545722,1736613041136,-909.33,0.00022191,3]
[348545723,1736613041147,-500.0,0.00022191,3]
[348545724,1736613041156,-22140.65,0.00022191,3]
[348545725,1736613041165,-500.0,0.00022191,3]
[348545726,1736613041176,-912.31,0.00022191,3]
[348545727,1736613041186,-905.47,0.00022191,3]
[348545728,1736613041197,-500.0,0.00022191,3]
[348545729,1736613041207,-804.05,0.00022191,3]
[348545730,1736613041217,-953.03,0.00022191,3]
[348545731,1736613041226,-5645.17,0.00022191,3]
[348545732,1736613041236,-1544.39,0.00022191,3]
[348545733,1736613041247,-500.0,0.00022191,3]
[348545734,1736613041257,-835.07,0.00022191,3]
[348545735,1736613041268,-555.5,0.00022191,3]
[348545736,1736613041277,-500.0,0.00022191,3]
[348545737,1736613041287,-811.96,0.000222,2]
[348545738,1736613041298,-1200.0,0.00022286,2]
[348545739,1736613041309,-161.72442544,0.00022298,2]
[348545740,1736613041319,-11384.83996396,0.00022339,2]
[348545741,1736613041329,-500.0,0.0002235,2]
[348545742,1736613041340,-500.0,0.0002235,2]
[348545743,1736613041350,-180.5547106,0.00022365,2]
[348545744,1736613041359,-171.307544,0.00022418,2]
[348545745,1736613041369,-739.72,0.00022465,3]
[348545746,1736613041379,-526.04,0.00022465,3]
[348545747,1736613041390,-2877.5,0.00022465,3]
[348545748,1736613041400,-1484.87,0.00022465,3]
[348545749,1736613041410,-151.0,0.00022465,2]
[348545750,1736613041419,-151.0,0.00022465,2]
[348545751,1736613041429,-500.0,0.00022465,3]
[348545752,1736613041439,-500.0,0.00022465,3]
[348545753,1736613041449,-1166.83,0.00022465,3]
[348545754,1736613041463,-500.0,0.00022465,3]
[348545755,1736613041473,-618.88,0.00022465,3]
[348545756,1736613041483,-555.05,0.00022465,3]
[348545757,1736613041492,-500.0,0.00022465,3]
[348545758,1736613041502,-585.97,0.00022465,3]
[348545759,1736613041511,-500.0,0.00022465,3]
[348545760,1736613041520,-500.0,0.00022465,3]
[348545761,1736613041529,-500.0,0.00022465,3]
[348545762,1736613041538,-500.0,0.00022465,3]
[348545763,1736613041547,-500.0,0.00022465,3]
[348545764,1736613041557,-500.0,0.00022465,3]
[348545765,1736613041566,-500.0,0.00022465,3]
[348545766,1736613041661,-500.0,0.00022465,3]
[348545767,1736613041686,-500.0,0.00022465,3]
[348545768,1736613041697,-561.35,0.00022465,3]
[348545769,1736613041706,-500.0,0.00022465,3]
[348545770,1736613041717,-500.0,0.00022465,3]
[348545771,1736613041727,-500.0,0.00022465,3]
[348545772,1736613041737,-915.52,0.00022465,3]
[348545773,1736613041746,-1072.97,0.00022465,3]
[348545774,1736613041755,-1271.1,0.00022465,3]
[348545775,1736613041765,-500.0,0.00022465,3]
[348545776,1736613041774,-1032.13,0.00022465,3]
[348545777,1736613041784,-500.0,0.00022465,3]
[348545778,1736613041793,-956.03,0.00022465,3]
[348545779,1736613041803,-32875.6,0.00022465,2]
[348545780,1736613041813,-500.0,0.00022465,3]
[348545781,1736613041823,-2476.56,0.00022465,3]
[348545782,1736613041834,-610.34,0.00022465,3]
[348545783,1736613041843,-500.0,0.00022465,3]
[348545784,1736613041852,-795.95,0.00022465,3]
[348545785,1736613041861,-500.0,0.00022465,3]
[348545786,1736613041871,-500.0,0.00022465,3]
[348545787,1736613041882,-905.63,0.00022465,3]
[348545788,1736613041891,-500.0,0.00022465,3]
[348545789,1736613041901,-1035.73,0.00022465,3]
[348545790,1736613041911,-641.4,0.00022465,3]
[348545791,1736613041922,-500.0,0.00022465,3]
[348545792,1736613041931,-500.0,0.00022465,3]
[348545793,1736613041943,-500.0,0.00022465,3]
[348545794,1736613041954,-1542.49,0.00022465,3]
[348545795,1736613041963,-500.0,0.00022465,3]
[348545796,1736613041973,-500.0,0.00022465,3]
[348545797,1736613041984,-1045.59,0.00022465,3]
[348545798,1736613041994,-500.0,0.00022465,3]
[348545799,1736613042005,-500.0,0.00022465,3]
[348545800,1736613042014,-500.0,0.00022465,3]
[348545801,1736613042024,-500.0,0.00022465,3]
[348545802,1736613042034,-1672.98,0.00022465,3]
[348545803,1736613042043,-909.33,0.00022465,3]
[348545804,1736613042053,-500.0,0.00022465,3]
[348545805,1736613042062,-22140.65,0.00022465,3]
[348545806,1736613042071,-500.0,0.00022465,3]
[348545807,1736613042083,-912.31,0.00022465,3]
[348545808,1736613042092,-905.47,0.00022465,3]
[348545809,1736613042101,-500.0,0.00022465,3]
[348545810,1736613042111,-804.05,0.00022465,3]
[348545811,1736613042122,-953.03,0.00022465,3]
[348545812,1736613042132,-5645.17,0.00022465,3]
[348545813,1736613042141,-1544.39,0.00022465,3]
[348545814,1736613042151,-500.0,0.00022465,3]
[348545815,1736613042161,-835.07,0.00022465,3]
[348545816,1736613042172,-555.5,0.00022465,3]
[348545817,1736613042181,-500.0,0.00022465,3]
[348545818,1736613042191,-2000.0,0.000227,2]
[348545819,1736613042200,-188.5,0.000227,2]
[348545820,1736613042209,-150.147685,0.000227,2]
[348545821,1736613042219,-7765.51822443,0.00022702,2]
[348545859,1736613043352,-291.13283178,0.00021917,3]
[348545860,1736613043365,-705.66791253,0.00021917,3]
[348545861,1736613043411,-5140.84925569,0.00021917,3]
[348545862,1736613043420,-5246.38774804,0.00022191,3]
[348545863,1736613043432,-891.26225196,0.00022191,3]
[348545864,1736613043441,-108.73774804,0.00022465,3]
[348545865,1736613043452,-1899.9,0.00022465,3]
[348545885,1736613046234,-4129.01225196,0.00022465,3]
[348545887,1736613046243,-161.72442544,0.00022539,2]
[348545888,1736613046253,-3619.32173953,0.00022702,2]
[348545890,1736613046263,-739.72,0.00022739,3]
[348545892,1736613046272,-526.04,0.00022739,3]
[348545894,1736613046282,-2877.5,0.00022739,3]
[348545896,1736613046292,-1484.87,0.00022739,3]
[348545898,1736613046302,-151.0,0.00022739,2]
[348545899,1736613046312,-151.0,0.00022739,2]
[348545900,1736613046321,-500.0,0.00022739,3]
[348545901,1736613046330,-500.0,0.00022739,3]
[348545902,1736613046340,-1166.83,0.00022739,3]
[348545904,1736613046350,-500.0,0.00022739,3]
[348545905,1736613046361,-618.88,0.00022739,3]
[348545906,1736613046371,-555.05,0.00022739,3]
[348545907,1736613046380,-500.0,0.00022739,3]
[348545908,1736613046390,-585.97,0.00022739,3]
[348545909,1736613046400,-500.0,0.00022739,3]
[348545910,1736613046410,-500.0,0.00022739,3]
[348545911,1736613046419,-500.0,0.00022739,3]
[348545912,1736613046430,-500.0,0.00022739,3]
[348545913,1736613046440,-500.0,0.00022739,3]
[348545914,1736613046450,-500.0,0.00022739,3]
[348545915,1736613046460,-500.0,0.00022739,3]
[348545916,1736613046470,-500.0,0.00022739,3]
[348545917,1736613046479,-500.0,0.00022739,3]
[348545918,1736613046489,-561.35,0.00022739,3]
[348545919,1736613046499,-500.0,0.00022739,3]
[348545920,1736613046509,-500.0,0.00022739,3]
[348545921,1736613046518,-500.0,0.00022739,3]
[348545922,1736613046528,-915.52,0.00022739,3]
[348545923,1736613046538,-1072.97,0.00022739,3]
[348545924,1736613046548,-1271.1,0.00022739,3]
[348545925,1736613046557,-500.0,0.00022739,3]
[348545926,1736613046567,-1032.13,0.00022739,3]
[348545927,1736613046577,-500.0,0.00022739,3]
[348545928,1736613046586,-956.03,0.00022739,3]
[348545929,1736613046597,-32875.6,0.00022739,2]
[348545930,1736613046607,-500.0,0.00022739,3]
[348545931,1736613046616,-2476.56,0.00022739,3]
[348545932,1736613046626,-610.34,0.00022739,3]
[348545933,1736613046638,-541.14784716,0.00022739,3]
[348545934,1736613046648,-795.95,0.00022739,3]
[348545935,1736613046657,-500.0,0.00022739,3]
[348545936,1736613046667,-500.0,0.00022739,3]
[348545937,1736613046677,-905.63,0.00022739,3]
[348545938,1736613046686,-500.0,0.00022739,3]
[348545939,1736613046696,-641.4,0.00022739,3]
[348545940,1736613046705,-1035.73,0.00022739,3]
[348545941,1736613046715,-500.0,0.00022739,3]
[348545942,1736613046724,-500.0,0.00022739,3]
[348545943,1736613046734,-500.0,0.00022739,3]
[348545944,1736613046744,-1542.49,0.00022739,3]
[348545945,1736613046753,-500.0,0.00022739,3]
[348545946,1736613046763,-500.0,0.00022739,3]
[348545947,1736613046773,-1045.59,0.00022739,3]
[348545948,1736613046782,-500.0,0.00022739,3]
[348545949,1736613046791,-500.0,0.00022739,3]
[348545950,1736613046801,-500.0,0.00022739,3]
[348545951,1736613046810,-500.0,0.00022739,3]
[348545952,1736613046820,-1672.98,0.00022739,3]
[348545953,1736613046829,-909.33,0.00022739,3]
[348545954,1736613046838,-365.19166822,0.00022739,3]
[348545955,1736613046847,-22140.65,0.00022739,3]
[348545956,1736613046856,-500.0,0.00022739,3]
[348545957,1736613046866,-912.31,0.00022739,3]
[348545958,1736613046875,-905.47,0.00022739,3]
[348545959,1736613046885,-500.0,0.00022739,3]
[348545960,1736613046894,-804.05,0.00022739,3]
[348545961,1736613046904,-953.03,0.00022739,3]
[348545962,1736613046913,-5645.17,0.00022739,3]
[348545963,1736613046923,-1544.39,0.00022739,3]
[348545964,1736613046932,-500.0,0.00022739,3]
[348545965,1736613046942,-835.07,0.00022739,3]
[348545966,1736613046952,-555.5,0.00022739,3]
[348545967,1736613046962,-500.0,0.00022739,3]
[348545968,1736613046971,-6137.65,0.00022739,3]
[348545969,1736613046983,-171.307544,0.00022754,2]
[348545970,1736613046993,-174.0,0.00022798,2]
[348545971,1736613047006,-174.0,0.00022798,2]
[348545972,1736613047016,-195.69,0.00022798,2]
[348545973,1736613047025,-153.0,0.00022801,2]
[348545974,1736613047034,-153.0,0.00022801,2]
[348545975,1736613047045,-153.0,0.00022801,2]
[348545976,1736613047054,-153.0,0.00022801,2]
[348545977,1736613047063,-153.0,0.00022801,2]
[348545978,1736613047075,-153.0,0.00022801,2]
[348545979,1736613047084,-153.0,0.00022801,2]
[348545980,1736613047094,-153.0,0.00022801,2]
[348545981,1736613047103,-153.0,0.00022801,2]
[348545982,1736613047113,-153.0,0.00022801,2]
[348545983,1736613047123,-153.0,0.00022801,2]
[348545984,1736613047132,-153.0,0.00022801,2]
[348545985,1736613047143,-153.0,0.00022801,2]
[348545986,1736613047152,-153.0,0.00022801,2]
[348545987,1736613047161,-153.0,0.00022801,2]
[348545988,1736613047171,-153.0,0.00022801,2]
[348545989,1736613047180,-153.0,0.00022801,2]
[348545990,1736613047189,-153.0,0.00022801,2]
[348545991,1736613047198,-153.0,0.00022801,2]
[348545992,1736613047208,-237.01,0.00022801,2]
[348545993,1736613047217,-153.0,0.00022813,2]
[348545994,1736613047227,-153.0,0.00022813,2]
[348545995,1736613047236,-153.0,0.00022813,2]
[348545996,1736613047245,-153.0,0.00022813,2]
[348545997,1736613047255,-153.0,0.00022813,2]
[348545998,1736613047264,-153.0,0.00022813,2]
[348545999,1736613047274,-153.0,0.00022813,2]
[348546000,1736613047283,-153.0,0.00022813,2]
[348546001,1736613047295,-153.0,0.00022813,2]
[348546002,1736613047305,-153.0,0.00022813,2]
[348546003,1736613047314,-153.0,0.00022813,2]
[348546004,1736613047324,-153.0,0.00022813,2]
[348546005,1736613047333,-153.0,0.00022813,2]
[348546006,1736613047342,-153.0,0.00022813,2]
[348546007,1736613047352,-153.0,0.00022813,2]
[348546008,1736613047361,-153.0,0.00022813,2]
[348546009,1736613047371,-153.0,0.00022813,2]
[348546010,1736613047379,-153.0,0.00022813,2]
[348546011,1736613047389,-153.0,0.00022813,2]
[348546012,1736613047398,-153.0,0.00022813,2]
[348546013,1736613047408,-244.0,0.00022813,2]
[348546014,1736613047417,-174.0,0.00022819,2]
[348546015,1736613047426,-174.0,0.00022819,2]
[348546016,1736613047436,-154.0,0.00022819,2]
[348546017,1736613047445,-1000.0,0.00022898,2]
[348546018,1736613047454,-1000.0,0.00022898,2]
[348546019,1736613047464,-3000.0,0.00022913,2]
[348546020,1736613047474,-3418.0,0.00022966,4]
[348546021,1736613047483,-1550.4877503,0.00023,2]
[348546022,1736613047492,-1000.0,0.00023,23]
[348546023,1736613047502,-500.0,0.00023013,2]
[348546024,1736613047511,-4553.65,0.00023013,3]
[348546025,1736613047519,-500.0,0.00023013,3]
[348546026,1736613047529,-500.0,0.00023013,3]
[348546027,1736613047538,-739.72,0.00023013,3]
[348546028,1736613047547,-526.04,0.00023013,3]
[348546029,1736613047556,-2877.5,0.00023013,3]
[348546030,1736613047566,-1484.87,0.00023013,3]
[348546031,1736613047575,-195.293926,0.00023013,2]
[348546032,1736613047584,-2500.0,0.00023013,3]
[348546033,1736613047593,-500.0,0.00023013,3]
[348546034,1736613047602,-500.0,0.00023013,3]
[348546035,1736613047611,-1166.83,0.00023013,3]
[348546036,1736613047620,-500.0,0.00023013,3]
[348546037,1736613047630,-618.88,0.00023013,3]
[348546038,1736613047640,-555.05,0.00023013,3]
[348546039,1736613047649,-500.0,0.00023013,3]
[348546040,1736613047658,-585.97,0.00023013,3]
[348546041,1736613047667,-500.0,0.00023013,3]
[348546042,1736613047677,-500.0,0.00023013,3]
[348546043,1736613047686,-500.0,0.00023013,3]
[348546044,1736613047696,-500.0,0.00023013,3]
[348546045,1736613047705,-636.88515154,0.00023013,3]
[348546046,1736613047714,-500.0,0.00023013,3]
[348546047,1736613047723,-500.0,0.00023013,3]
[348546048,1736613047732,-500.0,0.00023013,3]
[348546049,1736613047741,-500.0,0.00023013,3]
[348546050,1736613047750,-561.35,0.00023013,3]
[348546051,1736613047857,-500.0,0.00023013,3]
[348546052,1736613047867,-632.14480675,0.00023013,3]
[348546053,1736613047877,-500.0,0.00023013,3]
[348546054,1736613047887,-915.52,0.00023013,3]
[348546055,1736613047896,-1072.97,0.00023013,3]
[348546056,1736613047907,-1271.1,0.00023013,3]
[348546057,1736613047916,-500.0,0.00023013,3]
[348546058,1736613047925,-1032.13,0.00023013,3]
[348546059,1736613047934,-500.0,0.00023013,3]
[348546060,1736613047944,-956.03,0.00023013,3]
[348546061,1736613047954,-32875.6,0.00023013,2]
[348546062,1736613047963,-500.0,0.00023013,3]
[348546063,1736613047973,-2476.56,0.00023013,3]
[348546064,1736613047983,-610.34,0.00023013,3]
[348546065,1736613047992,-795.95,0.00023013,3]
[348546066,1736613048006,-500.0,0.00023013,3]
[348546067,1736613048015,-500.0,0.00023013,3]
[348546068,1736613048025,-905.63,0.00023013,3]
[348546069,1736613048035,-500.0,0.00023013,3]
[348546070,1736613048047,-641.4,0.00023013,3]
[348546071,1736613048057,-1035.73,0.00023013,3]
[348546072,1736613048068,-500.0,0.00023013,3]
[348546073,1736613048079,-500.0,0.00023013,3]
[348546074,1736613048089,-500.0,0.00023013,3]
[348546075,1736613048099,-1542.49,0.00023013,3]
[348546076,1736613048109,-167.0,0.00023013,3]
[348546077,1736613048119,-500.0,0.00023013,3]
[348546078,1736613048129,-1045.59,0.00023013,3]
[348546079,1736613048139,-500.0,0.00023013,3]
[348546080,1736613048149,-500.0,0.00023013,3]
[348546081,1736613048160,-266.00557281,0.00023013,3]
[348546082,1736613048171,-500.0,0.00023013,3]
[348546083,1736613048181,-1672.98,0.00023013,3]
[348546084,1736613048191,-909.33,0.00023013,3]
[348546085,1736613048201,-22140.65,0.00023013,3]
[348546086,1736613048210,-912.31,0.00023013,3]
[348546087,1736613048220,-500.0,0.00023013,3]
[348546088,1736613048229,-905.47,0.00023013,3]
[348546089,1736613048238,-500.0,0.00023013,3]
[348546090,1736613048248,-804.05,0.00023013,3]
[348546091,1736613048257,-953.03,0.00023013,3]
[348546092,1736613048266,-5645.17,0.00023013,3]
[348546093,1736613048275,-1544.39,0.00023013,3]
[348546094,1736613048284,-500.0,0.00023013,3]
[348546095,1736613048294,-835.07,0.00023013,3]
[348546096,1736613048304,-555.5,0.00023013,3]
[348546097,1736613048313,-500.0,0.00023013,3]
[348546098,1736613048323,-6137.65,0.00023013,3]
[348546099,1736613048332,-160.0,0.0002305,3]